Cogmind - Beta 15 @@@ ROGUE MODE // 2025.07.28 @ 17:28:33 Player: C0-2MO Result: Destroyed by as-21146 with Assembled Blade Performance ------------- Evolutions (0) 0 Regions Visited (2) 400 Robots Destroyed (22) 110 Value Destroyed (337) 337 Prototype IDs (1) 20 Alien Tech Used (0) 0 Bonus (0) 0 TOTAL SCORE: 867 Bonus ------- None Cogmind --------- Core Integrity 0/250 Matter 221/300 Energy 100/100 System Corruption 0% Temperature Cool (17) Movement Hovering (80) Location -10/Mines Parts ------- > --- POWER (1) -------- (None) > --- PROPULSION (2) --- Combat Airjet > --- UTILITY (2) ------ Small Storage Unit Hacking Suite > --- WEAPON (2) ------- Light Assault Rifle > --- INVENTORY (8) ---- Light Ion Engine Improved Terrain Scanner Tractor Beam Medium Laser Improved Medium Laser Light Cannon Datajack Mining Laser Peak State ------------ > --- POWER ------------ Light Ion Engine > --- PROPULSION ------- Hover Unit Combat Airjet > --- UTILITY ---------- Small Storage Unit Hacking Suite > --- WEAPON ----------- Improved Medium Laser Light Assault Rifle > --- INVENTORY -------- Improved Terrain Scanner Tractor Beam Medium Laser Improved Medium Laser Light Assault Rifle Light Assault Rifle Grenade Launcher Mining Laser [Rating: 16] Favorites ----------- Power Light Ion Engine Engine Light Ion Engine Propulsion Light Treads Treads Light Treads Leg Aluminum Leg Wheel Wheel Hover Unit Combat Airjet Utility Improved Terrain Scanner Device Improved Terrain Scanner Storage Small Storage Unit Hackware Hacking Suite Weapon Light Assault Rifle Energy Gun Improved Medium Laser Ballistic Gun Light Assault Rifle Ballistic Cannon Light Cannon Launcher Grenade Launcher Special Weapon Mining Laser Build | -11 -10 -10 ------- Run | Yrd Mat Min Slots Evolved . | . . . Power . | . . . Propulsion . | . . . Utility . | . . . Weapon . | . . . Parts Attached 25 | 15 7 3 Power 4 | 1 2 1 Engine 4 | 1 2 1 Core . | . . . Reactor . | . . . Propulsion 7 | 6 1 . Treads 2 | 2 . . Leg 1 | 1 . . Wheel 2 | 2 . . Hover 2 | 1 1 . Flight . | . . . Utility 5 | 4 1 . Device 3 | 3 . . Storage 1 | 1 . . Processor . | . . . Hackware 1 | . 1 . Protection . | . . . Artifact . | . . . Weapon 9 | 4 3 2 Energy Gun 2 | . 2 . Energy Cannon . | . . . Ballistic Gun 4 | 3 1 . Ballistic Cannon 1 | . . 1 Launcher 1 | . . 1 Special Weapon 1 | 1 . . Impact Weapon . | . . . Slashing Weapon . | . . . Piercing Weapon . | . . . Special Melee Weapon . | . . . Unidentified Prototypes 1 | . 1 . Parts Lost 5 | . 3 2 Power 3 | . 2 1 Propulsion 1 | . 1 . Utility . | . . . Weapon 1 | . . 1 Highest Loss Streak 2 | . 2 2 To Critical Strikes . | . . . Average Backups 3 | 2 6 8 Power . | . . . Propulsion . | . . . Utility 1 | 1 1 2 Weapon 1 | 1 4 4 Tool/Special . | . . . Unused Backups 5 | . 1 4 Power 1 | . . 1 Propulsion . | . . . Utility 1 | . . 1 Weapon 2 | . 1 1 Tool/Special 1 | . . 1 Average Slot Usage (%) 81 | . 80 83 Engine 12 | . 12 12 Hover 14 | . 14 14 Device 5 | . 8 . Storage 14 | . 14 14 Hackware 5 | . 2 14 Energy Gun 5 | . 7 3 Ballistic Gun 17 | . 20 11 Ballistic Cannon 3 | . . 9 Launcher 1 | . . 3 Peak Build Rating 16 | 12 16 15 Average Rating 10 | 9 10 13 On Entrance 8 | . 10 14 Naked Turns . | . . . Heaviest Build 14 | 12 14 14 Greatest Support 40 | 40 18 12 Greatest Overweight (x) 2 | 2 1 1 Average Overweight (x) . | . . . Largest Inventory Capacity 8 | 8 8 8 Average Capacity 5 | 5 8 8 Most Carried 8 | 5 8 8 Average Carried 3 | 2 6 7 Final Capacity 8 | 8 8 8 Final Carried 8 | 3 8 8 Class Distribution -------------------- 98% | Mutant Dominant Class ---------------- Mutant | -10/Materials Mutant | -10/Mines Resources | -11 -10 -10 ----------- Run | Yrd Mat Min Matter Collected 721 | 452 205 64 Remotely . | . . . Salvage Created 622 | 192 368 62 Parts 49 | 15 29 5 Haulers Intercepted 1 | . 1 . Recyclers Shooed 2 | 1 1 . Parts Field Recycled . | . . . Retrieved Matter . | . . . Parts Self-Destructed . | . . . Prevented . | . . . Kills | -11 -10 -10 ------- Run | Yrd Mat Min Combat Hostiles Destroyed 17 | 1 10 6 Guns 14 | 1 10 3 Cannons 2 | . . 2 AOE 1 | . . 1 Classes Destroyed 8 | 3 4 1 Tunneler 4 | 4 . . Hauler 1 | . 1 . Recycler 2 | 1 1 . Operator 1 | . 1 . Swarmer 9 | . 6 3 Grunt 4 | . 4 . Demolisher 1 | 1 . . Assembled 3 | . . 3 Best Kill Streak 5 | 4 5 2 Combat Bots Only 3 | 1 3 2 Max Kills in Single Turn 1 | 1 1 1 Gunslinging . | . . . Exploded 1 | . . 1 Melee . | . . . Uniques/NPCs Destroyed . | . . . Combat | -11 -10 -10 -------- Run | Yrd Mat Min Hostile Shots Fired 103 | 6 58 39 Missed 34 | . 19 15 Hits 69 | 6 39 24 Melee 2 | . . 2 Projectile 67 | 6 39 22 AOE 6 | 6 . . Critical Strikes 1 | . 1 . Part Disruptions 2 | . . 2 Damage Taken 964 | 251 394 319 Core 275 | 38 112 125 Absorbed by Shields . | . . . Regen/Repaired (Parts) 75 | . 75 . Core Remaining (%) 84 | 84 . . Volleys Fired 98 | 34 46 18 Largest 2 | 2 2 2 Hottest 120 | 120 76 76 Shots Fired 171 | 47 89 35 Gun 149 | 35 89 25 Cannon 7 | . . 7 Launcher 3 | . . 3 Special 12 | 12 . . Kinetic 125 | 35 68 22 Thermal 43 | 12 21 10 Explosive 3 | . . 3 Electromagnetic . | . . . Robot Hit Streak 6 | 4 6 4 Robot Miss Streak 5 | 5 5 4 Penetration Max . | . . . Secondary Targets . | . . . Shots Hit Robots 77 | 16 45 16 Core Hits 41 | 9 23 9 Critical Kills 1 | . 1 . Critical Parts Destroyed 1 | . 1 . Critical Strikes 2 | . 2 . Destroy 2 | . 2 . Melee Attacks . | . . . Impact . | . . . Slashing . | . . . Piercing . | . . . Sneak Attacks . | . . . Combat Hostiles . | . . . Follow-up Attacks . | . . . Damage Inflicted 904 | 153 488 263 Guns 770 | 153 488 129 Cannons 54 | . . 54 Explosions 80 | . . 80 Melee . | . . . Ramming . | . . . Kinetic 601 | 153 337 111 Thermal 223 | . 151 72 Explosive 80 | . . 80 Electromagnetic . | . . . Impact . | . . . Slashing . | . . . Piercing . | . . . Highest Corruption . | . . . Average Corruption . | . . . Corruption Purged . | . . . Corruption Blocked . | . . . Overload Shots . | . . . Overflow Damage . | . . . Projectiles . | . . . Explosions . | . . . Melee . | . . . Knockbacks . | . . . Impact . | . . . Kinetic . | . . . Secondary . | . . . Self-Inflicted Damage 24 | . . 24 Shots 1 | . . 1 Rammed . | . . . Targets Rammed . | . . . Kicked . | . . . Crushed . | . . . Highest Temperature 98 | 80 98 60 Average Temperature 32 | 27 39 25 Received Heat Transfer 208 | . 108 100 Siege Activations . | . . . Martial Activations . | . . . Shielding Activations . | . . . Robots Disrupted . | . . . Combat Hostiles . | . . . Robots Corrupted . | . . . Combat Hostiles . | . . . Parts Fried . | . . . Impact Corruptions . | . . . Robots Melted . | . . . Combat Hostiles . | . . . Parts Melted . | . . . Heat Transferred 481 | . 333 148 Parts Sabotaged . | . . . Parts Stolen . | . . . Parts Stripped . | . . . Power Chain Reactions . | . . . Alert | -11 -10 -10 ------- Run | Yrd Mat Min Maximum Alert Level . | . . . Low Security (%) 100 | 100 100 100 Level 1 . | . . . Level 2 . | . . . Level 3 . | . . . Level 4 . | . . . Level 5 . | . . . High Security . | . . . Max Security . | . . . Peak Influence 70 | 20 70 66 Initial 9 | . 9 6 Average 5 | . 21 17 Influence Increases 417 | 45 287 85 Destroy 0b10 Robot/C 280 | 20 200 60 Destroy 0b10 Robot/NC 40 | 25 15 . Destroy Leader 42 | . 32 10 Successful Hack 25 | . 25 . Destroy Structure 15 | . . 15 Partial Spotted 15 | . 15 . Influence Decreases 417 | 30 284 103 Entered New Map 18 | . 6 12 Time Decay 366 | 30 248 88 Lost Part 33 | . 30 3 Squads Dispatched 1 | . 1 . Investigation . | . . . Extermination . | . . . Reinforcement 1 | . 1 . Assault . | . . . Garrison . | . . . Intercept . | . . . Searches Triggered . | . . . Construction Impeded . | . . . Haulers Reinforced . | . . . Active Scanning Responses . | . . . Cargo Convoy Interrupts . | . . . Stealth | -11 -10 -10 --------- Run | Yrd Mat Min Distress Signals 3 | . 3 . Communications Jammed . | . . . Distress Signals . | . . . Times Spotted 40 | 1 27 12 Peak Tracking Total 8 | 1 8 7 Tactical Retreats . | . . . Traps | -11 -10 -10 ------- Run | Yrd Mat Min Traps Triggered . | . . . Indirectly . | . . . Trap Hack Attempts . | . . . Triggered . | . . . Disarmed . | . . . Reprogrammed . | . . . Reused . | . . . Traps Extracted . | . . . Installed . | . . . Triggered . | . . . Machines | -11 -10 -10 ---------- Run | Yrd Mat Min Machines Disabled . | . . . Max in Single Turn . | . . . Machines Repaired . | . . . Machines Dismantled . | . . . Machines Sabotaged . | . . . Overloaded Fab Kills . | . . . Hacking | -11 -10 -10 --------- Run | Yrd Mat Min Machines Accessed 7 | . 7 . Terminals 5 | . 5 . Fabricators . | . . . Repair Stations 1 | . 1 . Recycling Units 1 | . 1 . Scanalyzers . | . . . Garrison Access . | . . . Total Hacks 20 | . 20 . Successful 13 | . 13 . Failed 7 | . 7 . Catastrophic . | . . . Database Lockouts . | . . . Manual 18 | . 18 . Terminals 15 | . 15 . Fabricators . | . . . Repair Stations 2 | . 2 . Recycling Units 3 | . 3 . Scanalyzers . | . . . Garrison Access . | . . . Terminal Hacks . | . . . Fabricator Hacks . | . . . Repair Station Hacks 2 | . 2 . Scan Component 1 | . 1 . Repair 1 | . 1 . Recycling Unit Hacks . | . . . Scanalyzer . | . . . Garrison Access Hacks . | . . . Unauthorized Hacks 11 | . 11 . Terminals 9 | . 9 . Botnet 3 | . 3 . Operators 1 | . 1 . Skim 5 | . 5 . Fabricators . | . . . Repair Stations . | . . . Recycling Units 2 | . 2 . Reject 1 | . 1 . Mask 1 | . 1 . Scanalyzers . | . . . Garrison Access . | . . . Data Cores Recovered . | . . . Used . | . . . Hacking Detections 7 | . 7 . Full Trace Events . | . . . Feedback Events . | . . . Feedback Blocked . | . . . Robot Schematics Acquired . | . . . Robots Built . | . . . Authchips . | . . . Time . | . . . Total Robot Build Rating . | . . . Part Schematics Acquired . | . . . Parts Built . | . . . Authchips . | . . . Time . | . . . Total Part Build Rating . | . . . Parts Repaired 1 | . 1 . Time 50 | . 50 . Parts Recycled . | . . . Recycled Matter . | . . . Retrieved Matter . | . . . Retrieved Components . | . . . Parts Scanalyzed . | . . . Part Schematics Acquired . | . . . Parts Damaged . | . . . Bothacking | -11 -10 -10 ------------ Run | Yrd Mat Min Used RIF Installer . | . . . Robots Hacked . | . . . Non-combat . | . . . Combat . | . . . Robot Hacks Applied . | . . . Relay Couplers Released . | . . . Fabnet Peak Effective % . | . . . Robots Rewired . | . . . Allies Hacked . | . . . Hacks Repelled . | . . . Allies | -11 -10 -10 -------- Run | Yrd Mat Min Total Allies . | . . . Largest Group . | . . . Highest-Rated Group . | . . . Highest-Rated Ally . | . . . Total Orders . | . . . Ally Attacks . | . . . Total Damage . | . . . Kills . | . . . Allies Corrupted . | . . . Allies Melted . | . . . Intel | -11 -10 -10 ------- Run | Yrd Mat Min Active Infowar (turns) 3772 | 3336 436 . Terrain 3247 | 3247 . . Seismic 525 | 89 436 . Robot Analysis Total . | . . . Derelict Logs Recovered 2 | . . 2 Drone Launches . | . . . Drone Recoveries . | . . . Exploration | -11 -10 -10 ------------- Run | Yrd Mat Min Turns Passed 4711 | 3637 733 341 Spaces Moved 2012 | 1215 555 242 Core 931 | 931 . . Treads 41 | 41 . . Legs 9 | 9 . . Wheels 10 | 10 . . Hover 1021 | 224 555 242 Flight . | . . . Fastest Speed 50 | 50 66 80 Average Speed 87 | 87 86 84 Slowest Speed 160 | 160 150 150 Overloaded Moves . | . . . Propulsion Burnouts . | . . . Robots Hopped . | . . . Potential Cave-ins . | . . . Cave-ins Triggered . | . . . Exploration Rate (%) 75 | 97 83 46 Regions Visited 2 Branch Regions 1 Pre-discovered Areas 2 | . 1 1 Known Exits Taken . | . . . Unknown Exits Taken 2 | 1 1 . Scrap Searched 1 | . . 1 Spaces Dug . | . . . Terrain Destroyed 20 | . . 20 Melee . | . . . Projectile . | . . . AOE 20 | . . 20 Terrain Rammed . | . . . Walls Destroyed . | . . . Machines Disabled . | . . . Actions | -11 -10 -10 --------- Run | Yrd Mat Min Total 4785 | 3715 726 344 Wait 2613 | 2435 105 73 Move 2010 | 1214 554 242 Hop . | . . . Pick Up 6 | . 5 1 Fast Attach 23 | 14 7 2 Attach 3 | 3 . . Detach 7 | 6 1 . Swap 13 | 4 3 6 Drop 12 | 5 5 2 Fire 98 | 34 46 18 Melee . | . . . Ram . | . . . Kick . | . . . Crush . | . . . Escape Stasis . | . . . Rewire . | . . . Trap . | . . . Miscellaneous . | . . . Route ------- -11/Scrapyard -10/Materials (discovered 5 exits: *Mat x3 / [*Min] / Sub) -10/Mines (discovered 3 exits: Mat x2 / Sub) History --------- Turn | Location | Event 18 | -11/Scrapyard | Discovered new exit (range 16) 3303 | -11/Scrapyard | Assembled infested the area 3638 | -11/Scrapyard | Entered Materials 3639 | -10/Materials | Build established: Mutant 3766 | -10/Materials | Discovered new exit (range 16) 3824 | -10/Materials | Discovered new exit (range 9) 4038 | -10/Materials | Repaired Cmb. Airjet 4067 | -10/Materials | Discovered new exit (range 4) 4101 | -10/Materials | Learned Storage terminal intel 4137 | -10/Materials | Learned location of 2 exits from Mines 4163 | -10/Materials | Learned location of 2 exits from Mines 4179 | -10/Materials | Learned location of Mines (-8) 4184 | -10/Materials | Identified exit to Subcaves 4184 | -10/Materials | Identified exit to Materials 4185 | -10/Materials | Learned location of 1 exit from Recycling 4226 | -10/Materials | Learned location of 2 exits from Subcaves 4358 | -10/Materials | Core integrity fell below 50% 4371 | -10/Materials | Entered Mines 4514 | -10/Mines | Assembled infested the area 4519 | -10/Mines | Assisted by a Guerilla fighting off Assembled 4523 | -10/Mines | Learned location of Recycling (-9) 4706 | -10/Mines | Core integrity fell below 20% 4712 | -10/Mines | Destroyed by as-21146 with Assembled Blade Last Messages --------------- Exit location confirmed. 04474_ K-01 Serf collects debris. 04514_ ALERT: Infestation in the mines, dispatching Demolisher response squad. 04519_ A derelict emerges from the shadows: "You need to get out of here! I've been tracking a group of Assembled to figure out where they're coming from, and they're closing on this area, come on!" 04523_ Acquired derelict log, extracted data. World map updated: -9/Recycling. 04639_ as-57628 destroyed. 04673_ as-29220 destroyed. 04679_ as-28055 destroyed. 04686_ Acquired 5 matter. 04687_ Acquired 4 matter. 04689_ Acquired 1 matter. 04689_ Acquired 14 matter. 04707_ Lgt. Ion Engine destroyed. 04711_ Grenade Launcher destroyed. Map ----- +----------------------------------------------------+ | ### #?????????????????????????????????? | | #?# #?????????????????????????????????? | | ##?# #????????????????